Cogmind - Beta 9.3 @@@ ROGUE MODE // 2020.01.05 @ 16:22:00 // Winter2019/RPGLIKE Player: Demise Result: Destroyed by G-34 Mercenary with Small Laser Performance ------------- Evolutions (0) 0 Regions Visited (1) 200 Robots Destroyed (23) 115 Value Destroyed (302) 302 Prototype IDs (0) 0 Alien Tech Used (0) 0 Bonus (0) 0 TOTAL SCORE: 617 Bonus ------- None Cogmind --------- Core Integrity 0/600 Matter 203/300 Energy 125/125 System Corruption 0% Temperature Cool (8) Movement Flying (40) Location -10/Materials Parts ------- > --- POWER (1) -------- Light Ion Engine > --- PROPULSION (1) --- Flight Unit > --- UTILITY (2) ------ Improved Terrain Scanner > --- WEAPON (2) ------- Mini Grenade Launcher Flail > --- INVENTORY (1) ---- Grenade Launcher Peak State ------------ > --- POWER ------------ Light Ion Engine > --- PROPULSION ------- Flight Unit > --- UTILITY ---------- Sensor Array Improved Terrain Scanner > --- WEAPON ----------- Mini Grenade Launcher Flail > --- INVENTORY -------- Grenade Launcher [Rating: 9] Favorites ----------- Power Light Ion Engine Engine Light Ion Engine Propulsion Wheel Wheel Wheel Flight Unit Flight Unit Utility Improved Terrain Scanner Device Improved Terrain Scanner Weapon Assault Rifle Ballistic Gun Assault Rifle Launcher Mini Grenade Launcher Special Weapon Mining Laser Impact Weapon Flail Build | -11 -10 ------- Run | Scr Mat Slots Evolved 2 | 1 1 Power . | . . Propulsion . | . . Utility 1 | . 1 Weapon 1 | 1 . Parts Attached 16 | 12 4 Power 2 | 2 . Engine 2 | 2 . Core . | . . Reactor . | . . Propulsion 5 | 4 1 Treads . | . . Leg . | . . Wheel 4 | 4 . Hover . | . . Flight 1 | . 1 Utility 3 | 2 1 Device 3 | 2 1 Storage . | . . Processor . | . . Hackware . | . . Protection . | . . Artifact . | . . Weapon 6 | 4 2 Energy Gun . | . . Energy Cannon . | . . Ballistic Gun 2 | 2 . Ballistic Cannon . | . . Launcher 1 | . 1 Special Weapon 2 | 2 . Impact Weapon 1 | . 1 Slashing Weapon . | . . Piercing Weapon . | . . Special Melee Weapon . | . . Unidentified Prototypes . | . . Parts Lost 2 | . 2 Power . | . . Propulsion . | . . Utility 1 | . 1 Weapon 1 | . 1 Highest Loss Streak 2 | . 2 Average Slot Usage (%) 98 | . 98 Engine 17 | . 17 Wheel 16 | . 16 Flight 1 | . 1 Device 27 | . 27 Ballistic Gun 16 | . 16 Special Weapon 15 | . 15 Naked Turns . | . . Heaviest Build 9 | 7 9 Greatest Support 16 | 16 14 Greatest Overweight (x) . | . . Average Overweight (x) . | . . Largest Inventory Capacity 1 | . 1 Average Capacity . | . . Most Carried 1 | . 1 Average Carried . | . . Final Capacity 1 | . 1 Final Carried 1 | . 1 Class Distribution -------------------- 74% | Mutant 25% | Scout Dominant Class ---------------- Scout | -10/Materials Resources | -11 -10 ----------- Run | Scr Mat Matter Collected 490 | 458 32 Remotely . | . . Salvage Created 544 | 264 280 Parts 43 | 23 20 Haulers Intercepted 1 | . 1 Recyclers Shooed 1 | 1 . Parts Field Recycled . | . . Retrieved Matter . | . . Parts Self-Destructed . | . . Prevented . | . . Kills | -11 -10 ------- Run | Scr Mat Combat Hostiles Destroyed 6 | . 6 Guns 4 | . 4 AOE 2 | . 2 Classes Destroyed 8 | 3 5 Worker 2 | 2 . Builder 1 | . 1 Tunneler 10 | 9 1 Hauler 1 | . 1 Recycler 2 | 1 1 Watcher 1 | . 1 Swarmer 3 | . 3 Grunt 3 | . 3 Best Kill Streak 6 | 4 6 Combat Bots Only 3 | . 3 Max Kills in Single Turn 3 | 1 3 Gunslinging . | . . Exploded 2 | . 2 Melee . | . . Uniques/NPCs Destroyed . | . . Combat | -11 -10 -------- Run | Scr Mat Damage Taken 755 | . 755 Core 606 | . 606 Absorbed by Shields . | . . Redirected to Core 515 | . 515 Core Remaining (%) 100 | 100 . Volleys Fired 86 | 46 40 Largest 2 | 2 2 Hottest 120 | 120 120 Shots Fired 90 | 47 43 Gun 69 | 46 23 Cannon . | . . Launcher 3 | . 3 Special 18 | 1 17 Kinetic 69 | 46 23 Thermal 18 | 1 17 Explosive 3 | . 3 Electromagnetic . | . . Robot Hit Streak 11 | 6 11 Robot Miss Streak 3 | 2 3 Penetration Max . | . . Secondary Targets . | . . Shots Hit Robots 53 | 32 21 Core Hits 33 | 13 20 Critical Hits . | . . Critical Kills . | . . Critical Parts Destroyed . | . . Melee Attacks . | . . Impact . | . . Slashing . | . . Piercing . | . . Sneak Attacks . | . . Combat Hostiles . | . . Follow-up Attacks . | . . Damage Inflicted 1153 | 414 739 Guns 644 | 414 230 Cannons . | . . Explosions 485 | . 485 Melee . | . . Ramming . | . . Kinetic 644 | 414 230 Thermal 24 | . 24 Explosive 485 | . 485 Electromagnetic . | . . Impact . | . . Slashing . | . . Piercing . | . . Highest Corruption . | . . Average Corruption . | . . Corruption Purged . | . . Overload Shots . | . . Overflow Damage . | . . Projectiles . | . . Explosions . | . . Melee . | . . Knockbacks . | . . Impact . | . . Kinetic . | . . Secondary . | . . Self-Inflicted Damage . | . . Shots . | . . Rammed . | . . Targets Rammed . | . . Kicked . | . . Crushed . | . . Highest Temperature 64 | 30 64 Average Temperature 17 | 14 17 Received Heat Transfer 171 | . 171 Siege Activations . | . . Robots Corrupted . | . . Combat Hostiles . | . . Parts Fried . | . . Impact Corruptions . | . . Robots Melted . | . . Combat Hostiles . | . . Parts Melted . | . . Heat Transferred 50 | . 50 Parts Sabotaged . | . . Parts Stolen . | . . Parts Stripped . | . . Power Chain Reactions . | . . Missiles Intercepted . | . . Alert | -11 -10 ------- Run | Scr Mat Peak Influence 262 | 60 262 Average Influence 53 | 27 82 Maximum Alert Level 1 | . 1 Low Security (%) 99 | 100 98 Level 1 . | . 1 Level 2 . | . . Level 3 . | . . Level 4 . | . . Level 5 . | . . High Security . | . . Max Security . | . . Squads Dispatched 1 | . 1 Investigation 1 | . 1 Extermination . | . . Reinforcement . | . . Assault . | . . Garrison . | . . Intercept . | . . Construction Impeded . | . . Haulers Reinforced . | . . Stealth | -11 -10 --------- Run | Scr Mat Distress Signals 1 | . 1 Communications Jammed . | . . Distress Signals . | . . Times Spotted 12 | . 12 Peak Tracking Total 8 | . 8 Tactical Retreats . | . . Traps | -11 -10 ------- Run | Scr Mat Traps Triggered 1 | . 1 Indirectly . | . . Trap Hack Attempts . | . . Triggered . | . . Disarmed . | . . Reprogrammed . | . . Reused . | . . Traps Extracted . | . . Installed . | . . Triggered . | . . Machines | -11 -10 ---------- Run | Scr Mat Machines Disabled 5 | . 5 Max in Single Turn 1 | . 1 Machines Sabotaged . | . . Garrisons Compromised . | . . Overloaded Fab Kills . | . . Fab Network Shutdowns . | . . Hacking | -11 -10 --------- Run | Scr Mat Machines Accessed 4 | . 4 Terminals 4 | . 4 Fabricators . | . . Repair Stations . | . . Recycling Units . | . . Scanalyzers . | . . Garrison Access . | . . Total Hacks 17 | . 17 Successful 10 | . 10 Failed 7 | . 7 Catastrophic 1 | . 1 Database Lockouts . | . . Manual 5 | . 5 Terminals 17 | . 17 Fabricators . | . . Repair Stations . | . . Recycling Units . | . . Scanalyzers . | . . Garrison Access . | . . Terminal Hacks 7 | . 7 Branch Access Points 1 | . 1 Unreport Threat 2 | . 2 Locate Traps 1 | . 1 Hauler Manifests 1 | . 1 Registered Components 1 | . 1 Zone Layout 1 | . 1 Fabricator Hacks . | . . Repair Station Hacks . | . . Recycling Unit Hacks . | . . Scanalyzer . | . . Garrison Access Hacks . | . . Unauthorized Hacks 7 | . 7 Terminals 3 | . 3 Botnet 3 | . 3 Fabricators . | . . Repair Stations . | . . Recycling Units . | . . Scanalyzers . | . . Garrison Access . | . . Data Cores Recovered . | . . Used . | . . Hacking Detections 4 | . 4 Full Trace Events 1 | . 1 Feedback Events . | . . Feedback Blocked . | . . Robot Schematics Acquired . | . . Robots Built . | . . Matter . | . . Time . | . . Total Robot Build Rating . | . . Part Schematics Acquired . | . . Parts Built . | . . Matter . | . . Time . | . . Total Part Build Rating . | . . Parts Repaired . | . . Time . | . . Parts Recycled . | . . Recycled Matter . | . . Retrieved Matter . | . . Retrieved Components . | . . Parts Scanalyzed . | . . Part Schematics Acquired . | . . Parts Damaged . | . . Bothacking | -11 -10 ------------ Run | Scr Mat Used RIF Installer . | . . Robots Hacked . | . . Non-combat . | . . Combat . | . . Robot Hacks Applied . | . . Relay Couplers Released . | . . Robots Rewired . | . . Allies Hacked . | . . Hacks Repelled . | . . Allies | -11 -10 -------- Run | Scr Mat Total Allies . | . . Largest Group . | . . Highest-Rated Group . | . . Highest-Rated Ally . | . . Total Orders . | . . Ally Attacks . | . . Total Damage . | . . Kills . | . . Allies Corrupted . | . . Allies Melted . | . . Intel | -11 -10 ------- Run | Scr Mat Robot Analysis Total . | . . Derelict Logs Recovered . | . . Drone Launches . | . . Drone Recoveries . | . . Exploration | -11 -10 ------------- Run | Scr Mat Turns Passed 559 | 298 261 Spaces Moved 440 | 203 237 Core 171 | 1 170 Treads . | . . Legs . | . . Wheels 249 | 202 47 Hover . | . . Flight 20 | . 20 Fastest Speed 40 | 50 40 Average Speed 71 | 90 55 Slowest Speed 100 | 100 80 Overloaded Moves . | . . Propulsion Burnouts . | . . Robots Hopped 2 | . 2 Cave-ins Triggered 1 | . 1 Exploration Rate (%) 30 | 9 51 Regions Visited 1 Branch Regions . Pre-discovered Areas . | . . Known Exits Taken . | . . Unknown Exits Taken 1 | 1 . Scrap Searched . | . . Spaces Dug 11 | . 11 Terrain Destroyed 27 | 1 26 Melee . | . . Projectile 13 | 1 12 AOE 14 | . 14 Actions | -11 -10 --------- Run | Scr Mat Total 555 | 267 288 Wait 6 | . 6 Move 435 | 202 233 Hop 2 | . 2 Pick Up 1 | . 1 Fast Attach 14 | 10 4 Attach . | . . Detach . | . . Swap 2 | 2 . Drop 9 | 7 2 Fire 86 | 46 40 Melee . | . . Ram . | . . Kick . | . . Crush . | . . Escape Stasis . | . . Rewire . | . . Trap . | . . Miscellaneous . | . . Route ------- -11/Scrapyard -10/Materials (discovered 1 exit: *Min) History --------- Turn | Location | Event 21 | -11/Scrapyard | Discovered new exit (range 15) 174 | -11/Scrapyard | Upgraded with Weapon slot (x1) 299 | -11/Scrapyard | Entered Materials 300 | -10/Materials | Build established: Mutant 324 | -10/Materials | Identified exit to Mines 398 | -10/Materials | Upgraded with Utility slot (x1) 409 | -10/Materials | Crushed by falling debris 507 | -10/Materials | Core integrity fell below 50% 532 | -10/Materials | Core integrity fell below 20% 560 | -10/Materials | Destroyed by G-34 Mercenary with Small Laser Last Messages --------------- 00539_ Mining Laser destroyed. 00542_ Dropped Wheel. 00542_ Acquired Flight Unit. 00544_ Acquired 19 matter. 00551_ Acquired Flail. 00553_ Dropped Assault Rifle. 00554_ Acquired Mni. Grenade Launcher. 00555_ T-07 Excavator destroyed. 00555_ R-06 Scavenger destroyed. 00555_ A-02 Transporter destroyed. 00555_ U-05 Engineer lays Concrete. 00556_ Sensor Array destroyed. 00556_ U-05 Engineer lays Concrete. 00557_ S-10 Pest destroyed. 00557_ G-34 Mercenary destroyed. 00557_ Processing Tank disabled. 00557_ U-05 Engineer lays Concrete. 00558_ U-05 Engineer builds a Wall. 00559_ Terminal disabled. 00559_ U-05 Engineer destroyed. Map ----- +----------------------------------------------------+ | ??????????????????? ??" ?# """"" ? #####???### | | ??????????????????? ? # """"? "Y" ######?##?# | | ??????????????????#??#+##?? ? ? """ #####??###? | | ????????????????###? ? ######################### | | ????????????????????? ####?#### ##???##? | | ???????????????? ? ?? ?######### ######## | | ???????????????? ? ? # ## + *=! | | ?????????????????###? # """=## ######## | | ????????????????####? ?# """*## ## | | ?????????????????#### ???# """%## ## ! | | ???????????????###### ??# """ ## ## | | ????????????????##### ## """%## ## ! """ | | ?????????????????#?## ## *=## ## """ | | ????????????????#?#?# ?# """=######/##### """ | | ??????????????####### ## """*##### + | | ?????????????????#??# ## "" ###?# ########## | | ???????????? ?? ?#### "" k ### | | ????????????? ?? ?### u #?### ### !|| | | ?????????????"???#### g %g ##### ### !|| | | ??????????????"??#### u != ##### ## !|| | | ???????????" ?"??# %] %! ## | | ???????????????? # ! * T ## | | ???????????? ?? ?+ = ! ## | | ?????????????##?## # ######## ######### | | ????????????? ??## ??# [ ############ #### | | ???????????????? ??#!!]@ /########### # | | ?????????????? ?????#!!]]//##?? ? # """ | | ???????????? ???? ??########?? ?? + """ | | ??????????#? ? ?#???##???????#??????? # """ | | ??????????##? ???##???????###??? ??### # | | ?????????????? ????#?????##???#? ??#?#?##### | | ?????????????? ???##???#?###?#? ? ?????##?######## | | ????????????????#?#??#???##??#? ????#?#?#??##??#?# | | ??????????????????#??#??#????????????####?#??###?# | | ???????????????????##????#????#????#??#??#?#??##?# | | ????????????? ????#????##??#?????????????????##### | | ?????????????? #??##?????#????#????#??????##?###?# | | ?????????????????##???????????????##??#?#?????#### | | ?????????????????#????????#?#??????????#??#????### | | ??????????????????????????#????????????###???#???# | | ??????????????????????????#?#??????????????## ???# | | ?????????????????????????????????????? ??? # | | ???????????????????????????????????????????????? # | | ????????????????????????????????????????!?? #? ? ? | | ????????????????????????????????????? ????? #?? ? | | ??????????????????????????????????????????? # ?? # | | ??????????????????????????????????????????? ??? ?? | | ????????????????????????????????????????????? ? ? | | ???????????????????????????????????????????????? ? | | ????????????????????????????????????????????????#? | +----------------------------------------------------+ Best States ------------- Heat Dissipation 25 Energy Generation 10 Energy Capacity 125 Matter Stores 300 Matter Capacity 300 Sight Range 16 Robot Scan Range 10 Terrain Scan Range 16 Terrain Scan Density 210 Evasion (%) 62 Item Schematics ----------------- None Robot Schematics ------------------ None Fabricated ------------ Nothing Alien Tech Used ----------------- None Achievements -------------- None Challenges ------------ None RPGLIKE | -11 -10 --------- Run | Scr Mat Levels Raised . | . . XP Earned 4355 | 3000 1355 XP Spent 2570 | 1520 1050 Upgrades 9 | 5 4 Utility Slot 1 | . 1 Weapon Slot 1 | 1 . Mass Support 2 | . 2 Inventory Capacity 1 | . 1 Terrain Scan Density 2 | 2 . Ranged Accuracy 2 | 2 . Protomatter Created 16 | . 16 Protomatter Decayed . | . . Game ------ Seed AccelerationPlasmaBeam Manual? 0 Play Time 00:13:50 Cumulative 157.9 hours Start 2020.01.05 @ 16:13:29 End 2020.01.05 @ 16:22:00 Sessions 1 Manual Loads 0 Difficulty Rogue Special Mode Winter2019/RPGLIKE Game No. 217 Rogue 206 Adventurer 11 Explorer 0 Win Type - Total 0 Types 0/0/0/0/0/0/0 Lore% 48 Gallery% 59 Achievement% 42 Wizard Run 0 Options --------- ASCII 0 Keyboard 1 Movement Numpad Keybinds 0 Fullscreen 1 Font 12/Terminus Map View 83x54 Tactical HUD 1 Map Filters NONE Filters NONE Steam X RUN: 5d671cc4-fffa-497c-9057-72363c2468e9